bitfinex-derivatives/quotes_SOLF0:USTF0_20250823
["timestamp","ask_amount","ask_price","bid_price","bid_amount"]
[1755928140561,4.8134,207.84,207.79,4.50502902]
[1755928140761,4.8134,207.84,207.74,2.71]
[1755928141061,4.8134,207.84,207.75,9.22769779]
[1755928141366,24.0593,207.91,207.77,2.71]
[1755928141367,24.0603,207.9,207.77,2.71]
[1755928141556,9.6236,207.91,207.65,2.71]
[1755928141756,4.8146,207.79,207.67,2.71]
[1755928141961,4.8146,207.79,207.66,15.86996065]
[1755928141962,4.8146,207.79,207.69,2.71]
[1755928142166,4.8146,207.79,207.7,9.22487897]
[1755928142460,4.8146,207.79,207.71,9.22487897]
[1755928142763,4.8151,207.77,207.73,2.71]
[1755928142964,4.8151,207.77,207.74,4.49478694]
[1755928143165,4.8151,207.77,207.73,2.71]
[1755928143364,4.8151,207.77,207.74,4.48817327]
[1755928143565,4.8151,207.77,207.74,2.54]
[1755928143768,24.072,207.8,207.67,2.54]
[1755928144067,24.0731,207.79,207.68,4.48946889]
[1755928144368,24.0731,207.79,207.67,2.54]
[1755928144369,24.0731,207.79,207.69,4.48946889]
[1755928144567,24.0766,207.76,207.7,4.48840782]
[1755928144767,24.0766,207.76,207.67,2.54]
[1755928145069,128.86,207.83,207.69,2.54]
[1755928145365,24.0662,207.85,207.71,2.54]
[1755928145566,24.0662,207.85,207.72,4.4880775]
[1755928145768,4.8144,207.8,207.73,4.4880775]
[1755928145964,24.0696,207.82,207.71,2.54]
[1755928146163,24.0696,207.82,207.72,4.48593774]
[1755928146464,24.0696,207.82,207.73,4.48593774]
[1755928146661,24.066,207.85,207.74,4.4834967]
[1755928146865,24.066,207.85,207.71,2.54]
[1755928147363,4.8144,207.8,207.72,4.48284468]
[1755928147568,4.8144,207.8,207.73,4.48284468]
[1755928147763,4.8144,207.8,207.71,2.54]
[1755928147960,4.8144,207.8,207.72,4.48413937]
[1755928148168,4.8144,207.8,207.73,4.48413937]
[1755928148465,24.0699,207.82,207.67,2.54]
[1755928148766,24.0699,207.82,207.68,9.20228903]
[1755928148958,24.0699,207.82,207.69,4.48382317]
[1755928149164,24.0731,207.79,207.7,4.48382317]
[1755928149370,24.0731,207.79,207.71,4.48382317]
[1755928149567,24.0731,207.79,207.67,2.54]
[1755928149868,24.0731,207.79,207.68,4.48771063]
[1755928150068,24.0731,207.79,207.69,4.48771063]
[1755928150263,4.815,207.78,207.7,4.48624841]
[1755928150468,24.0742,207.78,207.67,2.54]
[1755928150664,24.0742,207.78,207.68,4.486403]
[1755928150861,24.0742,207.78,207.69,4.486403]
[1755928151066,24.0757,207.77,207.67,2.54]
[1755928151363,24.0757,207.77,207.68,4.48735536]
[1755928151566,4.8164,207.71,207.64,104.53189842]
[1755928151764,4.8164,207.71,207.65,9.21077535]
[1755928151969,4.8164,207.71,207.66,4.48800715]
[1755928152164,4.8159,207.74,207.67,4.48800715]
[1755928152367,4.8159,207.74,207.68,4.48788441]
[1755928152669,4.8159,207.74,207.64,104.53189842]
[1755928152969,24.0731,207.79,207.66,2.54]
[1755928153173,24.0731,207.79,207.67,9.21070223]
[1755928153369,24.0731,207.79,207.68,4.48796225]
[1755928153567,4.8158,207.74,207.69,4.48796225]
[1755928153772,4.8158,207.74,207.66,2.54]
[1755928154066,4.8152,207.77,207.68,2.54]
[1755928154262,4.8152,207.77,207.69,9.21561857]
[1755928154568,4.8152,207.77,207.7,9.21561857]
[1755928154769,4.8152,207.77,207.71,4.49035117]
[1755928155065,4.8152,207.77,207.72,7.03035117]
[1755928155367,4.8152,207.77,207.72,2.54]
[1755928156164,4.8152,207.77,207.73,4.48790873]
[1755928156472,4.8144,207.8,207.72,2.54]
[1755928156669,4.8144,207.8,207.73,9.21155441]
[1755928156971,4.8144,207.8,207.74,9.21124959]
[1755928157172,4.8144,207.8,207.75,7.02887114]
[1755928157366,4.8144,207.8,207.76,4.48887114]
[1755928157566,4.8144,207.8,207.77,4.48887114]
[1755928157865,4.8144,207.8,207.78,4.54725143]
[1755928158068,4.8144,207.8,207.75,2.54]
[1755928158267,4.8144,207.8,207.76,4.54673223]
[1755928158469,4.8144,207.8,207.75,2.54]
[1755928158470,4.8144,207.8,207.77,4.54673223]
[1755928158679,4.8144,207.8,207.78,4.54673223]
[1755928158871,4.8144,207.8,207.75,2.54]
[1755928159069,4.8144,207.8,207.76,4.54532366]
[1755928159374,4.8144,207.8,207.77,4.54532366]
[1755928159675,4.8144,207.8,207.78,4.54532366]
[1755928159871,4.8144,207.8,207.71,2.54]
[1755928160072,4.8144,207.8,207.72,9.21752642]
[1755928160272,4.8144,207.8,207.73,9.21752642]
[1755928160472,4.8144,207.8,207.74,9.21752642]
[1755928160673,4.8144,207.8,207.75,4.54697611]
[1755928160974,4.8144,207.8,207.76,4.54697611]
[1755928161175,4.8144,207.8,207.77,4.54697611]
[1755928161377,4.8144,207.8,207.78,4.54697611]
[1755928161676,4.8144,207.8,207.7,2.54]
[1755928161867,4.8144,207.8,207.71,9.13626248]
[1755928162071,4.8144,207.8,207.72,9.13626248]
[1755928162271,4.8144,207.8,207.73,9.13626248]
[1755928162472,4.8144,207.8,207.74,4.46413133]
[1755928162674,4.8144,207.8,207.75,4.46413133]
[1755928162871,4.8144,207.8,207.76,4.46413133]
[1755928163077,4.8144,207.8,207.7,2.54]
[1755928163277,4.8144,207.8,207.71,9.14265294]
[1755928163471,4.8144,207.8,207.72,9.14265294]
[1755928163676,4.8144,207.8,207.73,9.14265294]
[1755928163875,4.8144,207.8,207.74,9.14265294]
[1755928164081,24.0703,207.82,207.7,2.54]
[1755928164379,24.0703,207.82,207.71,9.14706679]
[1755928164579,4.8154,207.76,207.72,4.4689481]
[1755928164774,4.8154,207.76,207.73,4.4689481]
[1755928164969,4.8154,207.76,207.7,2.54]
[1755928165373,4.8154,207.76,207.71,11.68781997]
[1755928165669,4.8154,207.76,207.72,9.14781997]
[1755928165869,4.8154,207.76,207.73,4.47005004]
[1755928166078,4.8154,207.76,207.74,4.47005004]
[1755928166279,4.8154,207.76,207.71,2.54]
[1755928166580,4.8154,207.76,207.6,9.40923568]
[1755928166581,4.8157,207.74,207.72,4.47287401]
[1755928166781,4.8157,207.74,207.73,4.47287401]
[1755928168579,4.8152,207.77,207.73,4.47287401]
[1755928168779,4.8152,207.77,207.74,4.47287401]
[1755928169075,4.8152,207.77,207.75,4.47287401]
[1755928169276,4.8152,207.77,207.7,2.54]
[1755928169477,4.8152,207.77,207.71,9.17362385]
[1755928169677,4.8152,207.77,207.72,9.17362385]
[1755928169877,4.8152,207.77,207.73,4.48253836]
[1755928170083,4.8155,207.75,207.74,4.48253836]
[1755928171580,4.8164,207.71,207.64,2.54]
[1755928171880,24.0755,207.77,207.65,6.52490455]
[1755928172183,4.8159,207.74,207.66,9.06490455]
[1755928172384,4.8159,207.74,207.67,6.52490455]
[1755928172584,4.8159,207.74,207.68,6.52490455]
[1755928172786,4.8159,207.74,207.69,4.69651657]
[1755928172980,4.8159,207.74,207.66,2.54]
[1755928173175,24.0755,207.77,207.67,6.2851088]
[1755928173476,24.0765,207.76,207.66,2.54]
[1755928173677,24.0755,207.77,207.67,4.46004702]
[1755928173877,4.816,207.73,207.62,2.62]
[1755928174186,24.0789,207.74,207.63,6.29180773]
[1755928174376,24.0789,207.74,207.64,6.2917508]
[1755928174581,24.0789,207.74,207.65,6.2917508]
[1755928174780,24.0789,207.74,207.66,6.2917508]
[1755928174977,24.0789,207.74,207.67,4.46021676]
[1755928175285,24.0789,207.74,207.62,2.62]
[1755928175586,24.0803,207.73,207.63,6.29193204]
[1755928175776,24.0803,207.73,207.64,6.29193204]
[1755928176079,24.081,207.72,207.65,6.29193204]
[1755928176285,24.0833,207.71,207.62,2.62]
[1755928176485,24.0833,207.71,207.63,4.46185291]
[1755928176680,24.0833,207.71,207.62,2.62]
[1755928176882,24.0833,207.71,207.63,4.46242102]
[1755928177083,24.0833,207.71,207.62,2.62]
[1755928177285,24.0833,207.71,207.63,4.46201634]
[1755928177483,4.8172,207.68,207.62,2.62]
[1755928177684,4.8172,207.68,207.63,4.46217332]
[1755928177885,4.8172,207.68,207.62,2.62]
[1755928178085,24.0833,207.71,207.63,4.46227922]
[1755928178388,24.0833,207.71,207.62,2.62]
[1755928178682,24.0833,207.71,207.63,4.46234547]
[1755928178988,4.8175,207.67,207.57,2.62]
[1755928179189,4.8175,207.67,207.58,6.29480086]
[1755928179388,4.8175,207.67,207.59,6.29480086]
[1755928179686,4.8175,207.67,207.6,6.29480086]
[1755928179889,4.8175,207.67,207.61,6.29480086]
[1755928180088,4.8175,207.67,207.62,6.29480086]
[1755928180284,4.8175,207.67,207.57,2.62]
[1755928180485,4.8175,207.67,207.58,6.29481404]
[1755928180688,4.8175,207.67,207.59,6.29481404]
[1755928180889,4.8169,207.7,207.61,2.62]
[1755928181086,4.8169,207.7,207.62,6.29481404]
[1755928181284,4.8169,207.7,207.63,6.29481404]
[1755928181488,4.8169,207.7,207.64,4.46237385]
[1755928181789,4.8169,207.7,207.61,2.62]
[1755928181990,4.8169,207.7,207.62,6.29203594]
[1755928182291,4.8169,207.7,207.63,6.29203594]
[1755928182594,24.0808,207.73,207.61,2.62]
[1755928182797,24.0808,207.73,207.62,6.29225795]
[1755928182989,4.8166,207.7,207.63,6.29226324]
[1755928183291,24.082,207.72,207.64,4.46058226]
[1755928183492,24.082,207.72,207.61,2.62]
[1755928183694,24.082,207.72,207.62,10.90199122]
[1755928183887,24.082,207.72,207.63,10.90199122]
[1755928184083,24.082,207.72,207.64,10.90199122]
[1755928184392,24.0793,207.74,207.65,4.60924013]
[1755928184592,24.0793,207.74,207.66,4.60924013]
[1755928184791,24.0793,207.74,207.67,4.60924013]
[1755928184991,24.0793,207.74,207.57,2.62]
[1755928184992,24.0834,207.7,207.68,4.60924013]
[1755928185191,24.0834,207.7,207.69,4.60924013]
[1755928185493,24.087,207.67,207.57,2.62]
[1755928185685,24.087,207.67,207.58,6.29732693]
[1755928185885,4.8178,207.65,207.59,6.29732693]
[1755928186090,4.8178,207.65,207.6,6.29732693]
[1755928186386,4.8178,207.65,207.61,6.29732693]
[1755928186592,4.8178,207.65,207.62,4.46414902]
[1755928186792,4.8178,207.65,207.57,2.62]
[1755928187095,4.8178,207.65,207.58,6.29846011]
[1755928187294,4.8178,207.65,207.59,6.29846011]
[1755928187495,4.8178,207.65,207.6,6.29846011]
[1755928187790,4.8183,207.63,207.61,6.29846011]
[1755928187997,4.8183,207.63,207.57,2.62]
[1755928188194,4.8183,207.63,207.58,6.30110501]
[1755928188385,4.8183,207.63,207.57,2.62]
[1755928188386,4.8183,207.63,207.59,6.30110501]
[1755928188591,4.8183,207.63,207.6,4.46546229]
[1755928188794,4.8183,207.63,207.57,2.62]
[1755928188999,4.8183,207.63,207.58,6.30053789]
[1755928189194,4.8183,207.63,207.59,6.30053789]
[1755928189396,4.8183,207.63,207.57,2.62]
[1755928189397,4.8183,207.63,207.6,4.46506218]
[1755928189697,4.8183,207.63,207.57,2.62]
[1755928189995,24.0834,207.7,207.59,2.62]
[1755928190196,24.0834,207.7,207.6,6.28842719]
[1755928190496,24.0834,207.7,207.61,6.28842719]
[1755928190693,24.0822,207.71,207.59,2.62]
[1755928190694,4.8174,207.67,207.59,2.62]
[1755928190994,4.8174,207.67,207.6,6.28624378]
[1755928191196,4.8168,207.7,207.61,6.28624378]
[1755928191397,4.8168,207.7,207.62,7.07213055]
[1755928191596,128.12,207.75,207.54,2.62]
[1755928191787,128.12,207.75,207.56,2.62]
[1755928191991,4.8178,207.66,207.57,6.28677195]
[1755928192194,4.8178,207.66,207.59,2.62]
[1755928192394,4.8178,207.66,207.6,6.28677195]
[1755928192588,4.8178,207.66,207.61,4.45198059]
[1755928192896,4.8178,207.66,207.59,2.62]
[1755928193089,4.8178,207.66,207.6,4.45213866]
[1755928193290,4.8178,207.66,207.59,2.62]
[1755928193490,4.8178,207.66,207.6,6.28603444]
[1755928193689,4.8178,207.66,207.59,2.62]
[1755928197298,4.8178,207.66,207.6,4.55314259]
[1755928197493,4.8178,207.66,207.61,7.17314259]
[1755928197688,4.8178,207.66,207.62,4.55314259]
[1755928197896,4.8178,207.66,207.63,4.55314259]
[1755928198099,4.8178,207.66,207.64,4.5532098]
[1755928198296,4.8178,207.66,207.62,2.62]
[1755928198502,4.8178,207.66,207.63,4.55408504]
[1755928198794,4.8178,207.66,207.64,4.55408504]
[1755928198996,4.8178,207.66,207.62,2.62]
[1755928199198,4.8178,207.66,207.63,4.55400396]
[1755928199396,4.8178,207.66,207.64,4.55400396]
[1755928199596,4.8178,207.66,207.62,2.62]
[1755928199798,4.8178,207.66,207.63,4.55224846]
[1755928200001,4.8178,207.66,207.64,4.55224846]
[1755928200196,4.8178,207.66,207.65,4.55224846]
[1755928200797,4.8178,207.66,207.53,2.62]
[1755928200798,24.5685,207.66,207.53,2.62]
[1755928200998,128.06,207.68,207.54,6.29340273]
[1755928201195,30.05587137,207.69,207.53,2.62]
[1755928201401,152.1257,207.68,207.54,6.29829947]
[1755928201598,152.1257,207.68,207.55,6.2981717]
[1755928201793,152.1257,207.68,207.53,2.62]
[1755928202098,24.0883,207.66,207.54,6.29906633]
[1755928202301,24.0883,207.66,207.55,6.29906633]
[1755928202501,24.0883,207.66,207.53,2.62]
[1755928202703,24.0883,207.66,207.54,6.29556997]
[1755928202904,24.0883,207.66,207.55,6.29556997]
[1755928203202,24.0892,207.65,207.56,4.45630911]
[1755928203403,24.0892,207.65,207.53,2.62]
[1755928203604,24.0892,207.65,207.54,6.29049459]
[1755928203802,24.0892,207.65,207.55,6.29049459]
[1755928204002,4.8182,207.64,207.56,8.90069856]
[1755928204204,4.8182,207.64,207.56,2.61]
[1755928205103,4.8182,207.64,207.57,4.45347362]
[1755928205304,4.8184,207.63,207.56,2.61]
[1755928205506,4.8184,207.63,207.57,6.28808388]
[1755928205799,4.8184,207.63,207.56,2.61]
[1755928206105,4.8187,207.62,207.57,6.28905889]
[1755928206297,4.8187,207.62,207.58,2.61]
[1755928206500,4.8187,207.62,207.54,2.61]
[1755928206703,4.8189,207.61,207.55,6.29012806]
[1755928206907,4.8189,207.61,207.57,2.61]
[1755928207506,24.0792,207.74,207.58,2.61]
[1755928207706,133.97107137,207.73,207.59,6.28721559]
[1755928207908,133.97107137,207.73,207.6,6.28721559]
[1755928208208,133.97107137,207.73,207.61,4.45333376]
[1755928208410,133.97107137,207.73,207.58,2.61]
[1755928208603,4.8175,207.67,207.59,6.28733476]
[1755928208808,4.8175,207.67,207.6,6.28733476]
[1755928209010,4.8175,207.67,207.61,4.45290913]
[1755928209210,30.04917137,207.75,207.63,2.61]
[1755928209411,5.97107137,207.75,207.64,4.44987359]
[1755928209613,4.8162,207.73,207.63,2.61]
[1755928209911,481.74467137,207.79,207.65,2.61]
[1755928210107,4.8155,207.76,207.66,6.42184112]
[1755928210303,4.8155,207.76,207.67,9.03184112]
[1755928210502,4.8155,207.76,207.68,4.59000387]
[1755928210809,4.8155,207.76,207.69,4.59000387]
[1755928211012,4.8155,207.76,207.7,4.59022982]
[1755928211210,4.8155,207.76,207.67,2.61]
[1755928211410,4.8155,207.76,207.68,6.42452012]
[1755928211610,4.8155,207.76,207.69,4.5915609]
[1755928211811,4.8158,207.74,207.67,2.61]
[1755928212011,4.8158,207.74,207.68,4.59073535]
[1755928212211,24.0758,207.77,207.63,2.61]
[1755928212418,24.0758,207.77,207.64,6.4236975]
[1755928212609,24.0758,207.77,207.65,6.4236975]
[1755928212813,30.05007137,207.74,207.66,4.4883548]
[1755928213012,127.94,207.73,207.59,2.61]
[1755928213206,5.97107137,207.7,207.6,9.08768005]
[1755928213411,5.97107137,207.7,207.61,9.08768005]
[1755928213712,4.8181,207.64,207.62,4.49152494]
[1755928213919,4.8181,207.64,207.55,2.61]
[1755928214218,4.8181,207.64,207.56,10.93258218]
[1755928214513,127.92,207.68,207.57,10.93258218]
[1755928214712,127.92,207.68,207.58,4.49533315]
[1755928215016,127.92,207.68,207.59,4.49533315]
[1755928215216,48.1738,207.67,207.6,4.49533315]
[1755928215415,24.0847,207.69,207.55,2.61]
[1755928215619,127.92,207.68,207.56,10.93760793]
[1755928215917,127.92,207.68,207.57,10.93748483]
[1755928216107,127.92,207.68,207.58,9.09995686]
[1755928216313,127.92,207.68,207.59,4.49727049]
[1755928216527,4.8179,207.65,207.6,4.49727049]
[1755928216815,4.8179,207.65,207.61,4.49727049]
[1755928217012,4.8179,207.65,207.62,4.49727049]
[1755928217217,4.8179,207.65,207.55,2.61]
[1755928217417,4.8179,207.65,207.56,10.83181245]
[1755928217617,4.8179,207.65,207.57,10.83181245]
[1755928217817,4.8179,207.65,207.58,8.98899031]
[1755928218119,4.8179,207.65,207.59,4.50028854]
[1755928218316,4.8179,207.65,207.6,4.50028854]
[1755928218516,4.8179,207.65,207.61,4.50028854]
[1755928218719,132.7373,207.68,207.62,4.50061585]
[1755928218918,132.7373,207.68,207.55,2.61]
[1755928219114,132.7373,207.68,207.56,10.90369755]
[1755928219317,132.7373,207.68,207.57,10.90369755]
[1755928219516,132.7373,207.68,207.58,10.90369755]
[1755928219718,132.7373,207.68,207.59,10.90369755]
[1755928220013,4.8176,207.66,207.6,4.50019021]
[1755928220318,4.8176,207.66,207.61,4.50019021]
[1755928220513,4.8176,207.66,207.62,4.50019021]
[1755928220817,9.6309,207.76,207.63,11.66667253]
[1755928221014,9.6309,207.76,207.64,10.89705481]
[1755928221015,151.9399,207.73,207.64,10.89705481]
[1755928221322,151.9399,207.73,207.65,9.05667253]
[1755928221512,151.9399,207.73,207.66,4.50019021]
[1755928221817,151.9399,207.73,207.67,4.50019021]
[1755928222021,151.9399,207.73,207.68,4.50019021]
[1755928222215,151.9399,207.73,207.69,4.50019021]
[1755928222523,4.8167,207.7,207.63,2.61]
[1755928222713,4.8167,207.7,207.64,10.87915651]
[1755928223020,4.8167,207.7,207.65,9.03956137]
[1755928223212,4.8167,207.7,207.66,9.03956137]
[1755928223417,4.8167,207.7,207.67,4.48583648]
[1755928223617,4.8167,207.7,207.68,4.48583648]
[1755928223811,24.0829,207.71,207.49,9.45945646]
[1755928224010,24.0829,207.71,207.57,2.61]
[1755928224217,24.0829,207.71,207.58,10.97915255]
[1755928224409,24.0829,207.71,207.59,10.97915255]
[1755928224616,24.0829,207.71,207.6,10.97915255]
[1755928224817,4.818,207.64,207.61,9.13776115]
[1755928225012,4.818,207.64,207.62,4.4902046]
[1755928225213,4.818,207.64,207.63,4.4902046]
[1755928225418,4.838,207.64,207.63,4.4902046]
[1755928226916,4.8175,207.67,207.63,4.4902046]
[1755928227122,0.02,207.68,207.64,4.4902046]
[1755928227315,0.02,207.68,207.57,2.61]
[1755928227520,0.02,207.68,207.58,11.00379846]
[1755928227720,0.02,207.68,207.59,11.00379846]
[1755928228020,4.8174,207.67,207.6,4.66866191]
[1755928228220,4.8174,207.67,207.61,9.08682856]
[1755928228416,4.8174,207.67,207.62,4.49288408]
[1755928228615,4.8174,207.67,207.63,4.49288408]
[1755928228821,4.8174,207.67,207.64,4.49288408]
[1755928229022,4.8174,207.67,207.65,4.49288408]
[1755928229224,4.8174,207.67,207.57,2.61]
[1755928229528,4.8174,207.67,207.58,10.93071338]
[1755928229721,4.8174,207.67,207.59,10.93071338]
[1755928229916,4.8174,207.67,207.6,10.93071338]
[1755928230222,0.02,207.68,207.61,10.93068042]
[1755928230424,0.02,207.68,207.62,9.08792321]
[1755928230725,0.02,207.68,207.63,9.08792321]
[1755928230925,0.02,207.68,207.64,4.49348474]
[1755928231123,0.02,207.68,207.65,4.49348474]
[1755928231324,0.02,207.68,207.66,4.49348474]
[1755928231525,0.02,207.68,207.59,2.61]
[1755928231720,0.02,207.68,207.6,10.93084962]
[1755928231924,0.02,207.68,207.61,10.93084962]
[1755928232121,0.02,207.68,207.62,9.08805516]
[1755928232425,0.02,207.68,207.63,4.49353733]
[1755928232621,0.02,207.68,207.64,4.49353733]
[1755928232826,0.02,207.68,207.65,4.49353733]
[1755928233022,0.02,207.68,207.66,4.49353733]
[1755928233228,0.02,207.68,207.59,2.61]
[1755928233421,0.02,207.68,207.6,10.93078174]
[1755928233621,0.02,207.68,207.61,10.93078174]
[1755928233828,0.02,207.68,207.62,9.08801107]
[1755928234032,0.02,207.68,207.63,7.09356224]
[1755928234224,0.02,207.68,207.64,4.49356224]
[1755928234527,0.02,207.68,207.65,4.49356224]
[1755928234728,0.02,207.68,207.66,4.49356224]
[1755928235026,0.02,207.68,207.63,2.6]
[1755928235227,0.02,207.68,207.64,4.49073497]
[1755928235420,0.02,207.68,207.65,4.49073497]
[1755928235621,0.02,207.68,207.66,4.49073497]
[1755928235827,0.02,207.68,207.63,2.6]
[1755928236129,0.02,207.68,207.64,4.49355933]
[1755928236329,0.02,207.68,207.65,4.49355933]
[1755928236525,0.02,207.68,207.66,4.49355933]
[1755928236725,4.8171,207.69,207.63,2.6]
[1755928237025,4.8171,207.69,207.64,7.09354095]
[1755928237327,127.7,207.7,207.65,4.49247919]
[1755928237522,127.7,207.7,207.67,2.6]
[1755928238332,132.4966,207.71,207.67,2.6]
[1755928239520,4.8166,207.71,207.63,2.6]
[1755928239730,132.4966,207.71,207.64,4.49293678]
[1755928239931,132.4966,207.71,207.65,4.49293678]
[1755928240128,132.4966,207.71,207.66,7.09293678]
[1755928240328,9.6245,207.9,207.68,2.6]
[1755928240530,5.9719194,207.79,207.69,9.08535165]
[1755928240729,5.9719194,207.79,207.7,4.49293678]
[1755928240730,127.64,207.78,207.7,4.49293678]
[1755928240926,4.8152,207.77,207.71,4.49293678]
[1755928241126,4.8152,207.77,207.72,7.09293678]
[1755928241326,4.8152,207.77,207.73,4.61177482]
[1755928241531,4.8152,207.77,207.74,4.61177482]
[1755928241726,4.8152,207.77,207.72,2.6]
[1755928241930,4.8152,207.77,207.73,4.61152811]
[1755928242126,4.8152,207.77,207.74,4.61152811]
[1755928242327,4.8152,207.77,207.72,2.6]
[1755928242525,4.8152,207.77,207.73,4.60929069]
[1755928242728,4.8152,207.77,207.74,4.60929069]
[1755928242930,4.8152,207.77,207.72,2.6]
[1755928243336,4.8152,207.77,207.73,9.81606682]
[1755928243526,4.8152,207.77,207.72,2.6]
[1755928243731,4.8152,207.77,207.73,9.81581579]
[1755928243931,4.8152,207.77,207.72,2.6]
[1755928244127,5.9719194,207.76,207.67,2.6]
[1755928244334,5.9719194,207.76,207.68,9.8134073]
[1755928244627,5.9719194,207.76,207.69,4.60554333]
[1755928244826,5.9719194,207.76,207.7,4.60554333]
[1755928245022,5.9719194,207.76,207.67,2.6]
[1755928245329,5.9719194,207.76,207.68,9.47678199]
[1755928245530,5.9719194,207.76,207.69,4.60463841]
[1755928245734,4.8152,207.76,207.7,7.20463841]
[1755928246035,4.8152,207.76,207.71,7.20463841]
[1755928246224,4.8148,207.79,207.66,2.6]
[1755928246428,127.56,207.78,207.68,2.6]
[1755928246629,127.56,207.78,207.69,4.6011125]
[1755928246935,127.56,207.78,207.7,4.6011125]
[1755928247125,127.56,207.78,207.71,4.6011125]
[1755928247327,4.8155,207.75,207.68,2.6]
[1755928247535,5.9719194,207.75,207.69,4.60231886]
[1755928247736,5.9719194,207.75,207.64,2.6]
[1755928247936,5.9719194,207.75,207.65,4.60148103]
[1755928248130,5.9719194,207.75,207.66,4.60148103]
[1755928248330,5.9719194,207.75,207.67,4.60148103]
[1755928248530,4.8163,207.72,207.68,4.60148103]
[1755928248727,24.0801,207.73,207.64,2.6]
[1755928249041,24.0801,207.73,207.55,4.8199]
[1755928249042,24.0801,207.73,207.65,4.60238395]
[1755928249236,4.8173,207.67,207.66,4.60238395]
[1755928250534,4.8173,207.67,207.61,2.6]
[1755928250731,4.8173,207.67,207.55,10.7918194]
[1755928250732,4.8173,207.67,207.62,7.20477314]
[1755928250928,127.5,207.69,207.63,4.60477314]
[1755928251129,127.5,207.69,207.64,4.60567683]
[1755928251335,127.5,207.69,207.65,4.60567683]
[1755928251539,127.48,207.71,207.66,4.60567683]
[1755928251738,127.48,207.71,207.66,2.6]
[1755928252234,4.8161,207.73,207.67,2.6]
[1755928252439,127.48,207.73,207.68,4.5705212]
[1755928252640,127.48,207.73,207.67,2.6]
[1755928252841,4.8164,207.72,207.68,4.57047561]
[1755928253039,4.8164,207.72,207.67,2.6]
[1755928253242,127.48,207.73,207.68,4.57071474]
[1755928253439,4.8166,207.71,207.59,5.9719194]
[1755928253638,4.8166,207.71,207.63,2.6]
[1755928253848,4.8166,207.71,207.64,4.57115631]
[1755928254145,4.8166,207.71,207.65,4.57115631]
[1755928254347,329.7319194,207.78,207.67,2.6]
[1755928254348,323.76,207.78,207.67,2.6]
[1755928254642,127.46,207.77,207.69,2.6]
[1755928254843,127.46,207.77,207.7,9.531294]
[1755928255143,451.22,207.78,207.71,9.531294]
[1755928255333,451.22,207.78,207.72,4.57115631]
[1755928255535,451.22,207.78,207.73,7.17384768]
[1755928255736,451.22,207.78,207.73,2.6]
[1755928255934,457.1919194,207.78,207.58,5.9719194]
[1755928256140,457.1919194,207.78,207.6,2.6]
[1755928256345,457.1919194,207.78,207.62,2.6]
[1755928256543,457.1919194,207.78,207.64,2.6]
[1755928256740,457.1919194,207.78,207.65,11.29523903]
[1755928257048,457.1919194,207.78,207.66,9.45529846]
[1755928257245,457.1919194,207.78,207.67,9.45529846]
[1755928257541,4.8161,207.73,207.68,4.57779827]
[1755928257741,132.2561,207.73,207.69,4.57779827]
[1755928257943,132.2561,207.73,207.7,4.57779827]
[1755928258137,132.2561,207.73,207.71,4.57779827]
[1755928258345,132.2561,207.73,207.64,2.6]
[1755928258645,132.2561,207.73,207.65,11.048563]
[1755928258847,4.8167,207.7,207.66,9.20765666]
[1755928259143,4.8167,207.7,207.67,4.57957244]
[1755928259337,4.8167,207.7,207.68,4.57957244]
[1755928259536,4.8167,207.7,207.64,2.6]
[1755928259748,4.8171,207.68,207.65,4.58262294]
[1755928260040,92.81737706,207.6,207.57,5.9719194]
[1755928260245,92.81737706,207.6,207.58,6.39967797]
[1755928260441,92.81737706,207.6,207.59,6.39967797]
[1755928260841,92.81737706,207.6,207.59,6.87967797]
[1755928262046,92.81737706,207.6,207.59,9.47967797]